bitfinex-derivatives/quotes_ETHF0:USTF0_20210703
["timestamp","ask_amount","ask_price","bid_price","bid_amount"]
[1625327662786,5.95027,2222.6,2221.8,2.20527]
[1625327662884,4.74597,2221.9,2221.8,2.20527]
[1625327663235,5.74597,2221.9,2221.8,2.20527]
[1625327663645,4.74597,2221.9,2221.8,2.20527]
[1625327664041,5.74597,2221.9,2221.8,2.20527]
[1625327664845,7.95124,2221.9,2221.8,2.20527]
[1625327665445,6.95124,2221.9,2221.8,2.20527]
[1625327665945,7.95124,2221.9,2221.8,2.20527]
[1625327666346,6.95124,2221.9,2221.8,2.20527]
[1625327666948,7.95124,2221.9,2221.8,2.20527]
[1625327667949,3.5407,2221.9,2221.8,2.20527]
[1625327668753,3.5407,2221.9,2221.5,2.20527]
[1625327668853,4.41054,2221.6,2221.5,2.20527]
[1625327669005,5.41054,2221.6,2221.5,2.20527]
[1625327678189,4.41054,2221.6,2221.5,2.20527]
[1625327678340,5.41054,2221.6,2221.5,2.20527]
[1625327679143,1.32300659,2222.4,2221.5,2.20527]
[1625327679242,1.0,2222.2,2221.5,2.20527]
[1625327679342,1.0,2222.2,2221.5,5.05597]
[1625327680943,2.20527,2221.6,2221.5,5.05597]
[1625327681193,2.20527,2221.6,2221.5,2.20527]
[1625327681294,6.47387,2221.6,2221.5,2.20527]
[1625327682096,5.47387,2221.6,2221.5,2.20527]
[1625327682299,6.47387,2221.6,2221.5,2.20527]
[1625327688106,6.47387,2221.6,2220.2,9.32325872]
[1625327688609,6.47387,2221.6,2220.2,8.0]
[1625327689008,6.47387,2221.6,2221.5,2.20527]
[1625327690464,6.47387,2221.6,2220.3,8.0]
[1625327691068,2.20527,2221.3,2221.0,2.20527]
[1625327695041,4.41054,2221.3,2221.0,2.20527]
[1625327697444,5.41054,2221.3,2221.0,2.20527]
[1625327701602,4.41054,2221.3,2221.0,2.20527]
[1625327701703,1.0,2222.0,2221.0,10.20527]
[1625327701807,1.31754643,2222.4,2221.0,12.57647]
[1625327702104,1.31754643,2222.4,2221.1,16.342437]
[1625327702203,6.58523471,2223.5,2221.1,16.342437]
[1625327702204,1.31806817,2222.9,2221.2,8.0]
[1625327702505,1.31806817,2222.9,2221.3,16.210499]
[1625327702605,1.31806817,2222.9,2221.4,8.0]
[1625327702705,2.63613633,2223.1,2221.4,8.0]
[1625327702706,1.0,2222.7,2221.4,8.0]
[1625327702905,1.0,2222.7,2221.5,16.435239]
[1625327703005,1.0,2222.7,2221.6,8.0]
[1625327703105,3.20527,2222.7,2222.6,2.20527]
[1625327705127,5.41054,2222.7,2222.6,2.20527]
[1625327710045,4.41054,2222.7,2222.6,2.20527]
[1625327710147,4.41054,2222.7,2222.6,4.56077]
[1625327711197,1.0,2223.1,2222.6,4.56077]
[1625327711397,1.31782098,2223.3,2222.6,4.56077]
[1625327711847,1.0,2223.4,2222.6,4.56077]
[1625327713200,1.0,2223.4,2223.3,2.20527]
[1625327713804,2.20527,2223.5,2223.3,2.20527]
[1625327713954,1.0,2223.4,2223.3,2.20527]
[1625327714353,2.20527,2223.5,2223.3,5.00067]
[1625327715357,2.20527,2223.6,2223.3,5.00067]
[1625327717019,2.20527,2223.6,2223.3,2.20527]
[1625327718013,3.20527,2223.6,2223.3,2.20527]
[1625327720226,2.20527,2223.6,2223.3,2.20527]
[1625327720327,3.20527,2223.6,2223.3,2.20527]
[1625327720423,2.20527,2223.6,2223.3,2.20527]
[1625327721023,1.32028741,2224.0,2223.3,2.20527]
[1625327721225,2.20527,2223.6,2223.3,2.20527]
[1625327723940,2.20527,2223.8,2223.3,2.20527]
[1625327724038,2.20527,2223.8,2223.3,4.70957]
[1625327724844,1.0,2223.7,2223.3,4.70957]
[1625327725346,2.20527,2223.8,2223.6,2.20527]
[1625327725549,3.20527,2223.8,2223.6,2.20527]
[1625327726000,2.20527,2223.8,2223.6,2.20527]
[1625327726098,2.20527,2223.8,2223.6,4.93677]
[1625327728103,1.0,2223.7,2223.6,4.93677]
[1625327728199,1.0,2223.7,2223.6,2.7315]
[1625327728301,2.20527,2223.8,2223.6,2.7315]
[1625327728403,2.20527,2223.8,2223.3,2.20527]
[1625327728903,3.20527,2223.8,2223.3,2.20527]
[1625327729305,3.20527,2223.8,2223.6,2.20527]
[1625327729457,2.20527,2223.8,2223.6,2.20527]
[1625327730557,2.20527,2223.8,2223.3,2.20527]
[1625327730709,5.01047,2223.8,2223.3,2.20527]
[1625327730808,6.01047,2223.8,2223.3,2.20527]
[1625327731357,6.01047,2223.8,2223.3,4.41054]
[1625327733358,6.01047,2223.8,2223.6,2.20527]
[1625327734366,6.01047,2223.8,2222.8,4.759]
[1625327735419,6.01047,2223.8,2223.4,2.20527]
[1625327737418,2.20527,2223.5,2223.4,2.20527]
[1625327737869,2.20527,2223.5,2223.1,2.20527]
[1625327738774,7.33192986,2223.8,2223.1,2.20527]
[1625327739478,7.33192986,2223.8,2223.6,2.20527]
[1625327739577,6.01047,2223.8,2223.6,2.20527]
[1625327741031,7.33230857,2223.8,2223.6,2.20527]
[1625327741428,2.20527,2223.7,2223.6,2.20527]
[1625327741530,3.20527,2223.7,2223.6,2.20527]
[1625327742083,2.20527,2223.7,2223.6,2.20527]
[1625327742384,3.20527,2223.7,2223.6,2.20527]
[1625327743634,3.20527,2223.7,2223.1,2.20527]
[1625327744391,2.20527,2223.7,2223.1,2.20527]
[1625327744684,1.0,2223.6,2223.1,2.20527]
[1625327745492,2.20527,2223.2,2223.1,2.20527]
[1625327748452,1.0,2223.6,2223.1,2.20527]
[1625327749456,2.20527,2223.2,2223.1,2.20527]
[1625327749658,5.15447,2223.2,2223.1,2.20527]
[1625327751411,2.9492,2223.2,2223.1,2.20527]
[1625327755071,2.20527,2223.4,2223.1,2.20527]
[1625327755470,2.20527,2223.4,2223.3,2.20527]
[1625327755671,1.0,2223.6,2223.3,2.20527]
[1625327757533,1.0,2223.6,2223.5,2.20527]
[1625327759836,2.20527,2223.7,2223.5,2.20527]
[1625327760038,3.20527,2223.7,2223.5,2.20527]
[1625327761038,2.20527,2223.7,2223.5,2.20527]
[1625327762542,3.20527,2223.7,2223.5,2.20527]
[1625327763606,2.20527,2223.7,2223.5,2.20527]
[1625327764358,1.0,2223.6,2223.5,2.20527]
[1625327766965,3.20527,2223.7,2223.5,2.20527]
[1625327770986,2.20527,2223.7,2223.5,2.20527]
[1625327777861,1.0,2224.2,2223.5,2.20527]
[1625327778971,1.3225458,2224.3,2223.5,2.20527]
[1625327779671,3.5278158,2224.3,2224.2,4.41054]
[1625327779772,3.5278158,2224.3,2224.2,6.87384]
[1625327782274,4.5278158,2224.3,2224.2,6.87384]
[1625327783378,3.20527,2224.3,2224.2,6.87384]
[1625327783780,5.05810616,2224.3,2224.2,6.87384]
[1625327785934,2.64894521,2224.3,2224.2,6.87384]
[1625327786037,2.64894521,2224.3,2224.2,14.87384]
[1625327786435,2.20527,2224.6,2224.2,14.87384]
[1625327787188,2.20527,2224.6,2224.3,16.415791]
[1625327787287,2.20527,2224.6,2224.3,24.415791]
[1625327787841,2.20527,2224.6,2224.5,2.20527]
[1625327791602,3.17976019,2224.8,2224.5,10.20527]
[1625327791805,2.32236019,2224.8,2224.7,2.20527]
[1625327791903,0.90036019,2224.8,2224.7,10.20527]
[1625327792012,3.02453785,2224.9,2224.7,10.20527]
[1625327792112,0.37473769,2224.9,2224.7,10.20527]
[1625327792361,2.6493802,2225.5,2224.8,16.215786]
[1625327792461,2.6493802,2225.5,2224.9,8.0]
[1625327792565,2.6493802,2225.5,2224.9,11.6028]
[1625327792765,2.6493802,2225.5,2225.0,16.446767]
[1625327792869,3.44419426,2225.7,2225.1,8.0]
[1625327792971,2.6465944,2225.9,2225.1,8.0]
[1625327793166,2.6465944,2225.9,2225.2,16.418374]
[1625327793269,2.6465944,2225.9,2225.3,8.0]
[1625327793370,2.64677599,2226.2,2225.2,16.418374]
[1625327793572,1.0,2226.1,2225.4,16.311292]
[1625327793721,3.64679909,2226.1,2225.4,16.311292]
[1625327793821,2.20527,2225.8,2225.7,2.20527]
[1625327795039,5.31087,2225.8,2225.7,2.20527]
[1625327795339,5.31087,2225.8,2224.2,15.3376]
[1625327795439,6.31087,2225.8,2224.2,15.3376]
[1625327795641,8.95628402,2225.8,2224.2,15.3376]
[1625327795940,8.95628402,2225.8,2225.3,2.20527]
[1625327796792,6.31087,2225.8,2225.3,2.20527]
[1625327797195,8.95557858,2225.8,2225.3,2.20527]
[1625327797845,8.95557858,2225.8,2225.6,2.20527]
[1625327799696,8.95557858,2225.8,2225.3,2.20527]
[1625327799897,2.20527,2225.4,2225.3,2.20527]
[1625327799997,3.20527,2225.4,2225.3,2.20527]
[1625327801396,2.20527,2225.4,2225.3,2.20527]
[1625327801499,3.20527,2225.4,2225.3,2.20527]
[1625327801746,2.20527,2225.4,2225.3,2.20527]
[1625327802546,3.20527,2225.4,2225.3,2.20527]
[1625327803099,3.20527,2225.4,2224.9,2.20527]
[1625327803750,2.64395969,2225.3,2224.9,2.20527]
[1625327803851,4.7401,2225.2,2224.9,2.20527]
[1625327803949,2.20527,2225.0,2224.9,2.20527]
[1625327804056,3.20527,2225.0,2224.9,2.20527]
[1625327804250,3.20527,2225.0,2224.5,2.20527]
[1625327805457,1.0,2225.0,2224.5,2.20527]
[1625327806016,2.20527,2225.4,2224.9,2.20527]
[1625327806119,1.0,2225.2,2224.9,2.20527]
[1625327807531,1.0,2225.2,2224.5,2.20527]
[1625327807631,4.3209,2225.2,2224.5,2.20527]
[1625327807733,4.3209,2225.2,2223.6,8.0]
[1625327807934,2.20527,2224.5,2224.4,2.20527]
[1625327808035,5.07757,2224.5,2224.4,2.20527]
[1625327809052,2.20527,2224.5,2224.4,2.20527]
[1625327809652,1.0,2225.1,2224.4,2.20527]
[1625327809853,1.0,2225.1,2224.4,4.80927]
[1625327809956,3.20527,2225.1,2225.0,4.41054]
[1625327811256,2.20527,2225.1,2225.0,4.41054]
[1625327811758,3.20527,2225.1,2225.0,4.41054]
[1625327814081,2.20527,2225.1,2225.0,4.41054]
[1625327814229,2.20527,2225.1,2225.0,7.21444]
[1625327815330,1.0,2225.3,2225.0,7.21444]
[1625327816736,2.20527,2225.5,2225.0,7.21444]
[1625327816986,1.0,2225.7,2225.0,7.21444]
[1625327817185,1.0,2225.7,2225.0,15.21444]
[1625327817286,1.0,2225.7,2225.1,16.428185]
[1625327818041,1.0,2225.7,2225.6,4.41054]
[1625327818839,2.20527,2225.8,2225.6,4.41054]
[1625327819140,1.0,2225.7,2225.6,4.41054]
[1625327819343,2.20527,2226.0,2225.6,4.41054]
[1625327820045,1.0,2225.9,2225.6,2.20527]
[1625327821194,1.0,2225.9,2224.8,8.0]
[1625327821948,1.0,2225.9,2224.9,16.401619]
[1625327822099,1.0,2225.9,2225.8,2.20527]
[1625327822199,1.0,2225.9,2225.7,2.20527]
[1625327822301,3.2992,2225.9,2225.7,2.20527]
[1625327824055,3.2992,2225.9,2225.8,2.20527]
[1625327826415,2.2992,2225.9,2225.8,2.20527]
[1625327826518,1.0,2225.9,2225.8,2.20527]
[1625327826966,4.84463638,2226.3,2225.8,2.20527]
[1625327827169,2.20527,2226.3,2225.8,2.20527]
[1625327827521,1.0,2226.2,2225.8,2.20527]
[1625327828079,1.0,2226.2,2226.1,2.20527]
[1625327832944,2.20527,2226.3,2226.1,2.20527]
[1625327833041,2.20527,2226.5,2226.1,2.20527]
[1625327834093,4.41054,2226.5,2226.4,2.20527]
[1625327834445,5.41054,2226.5,2226.4,2.20527]
[1625327835145,4.41054,2226.5,2226.4,2.20527]
[1625327838352,5.41054,2226.5,2226.4,2.20527]
[1625327838804,5.41054,2226.5,2226.1,2.20527]
[1625327838903,7.76294,2226.5,2226.1,2.20527]
[1625327842231,7.76294,2226.5,2226.4,2.20527]
[1625327842431,7.76294,2226.5,2225.2,14.6116]
[1625327842534,12.76294,2226.5,2224.0,0.9018]
[1625327842633,7.76294,2226.5,2223.5,0.9007]
[1625327842736,7.76294,2226.5,2223.7,0.19325415]
[1625327842836,7.76294,2226.5,2223.7,14.40525415]
[1625327842934,7.76294,2226.5,2223.7,14.212]
[1625327843135,15.3205,2226.4,2223.8,16.254075]
[1625327843235,1.0,2226.3,2223.8,16.254075]
[1625327843537,1.0,2226.3,2223.9,8.0]
[1625327843939,1.0,2226.3,2224.1,8.0]
[1625327844189,2.20527,2225.3,2225.2,2.20527]
[1625327844439,5.61467,2225.3,2225.2,2.20527]
[1625327845239,6.61467,2225.3,2225.2,2.20527]
[1625327845939,6.61467,2225.3,2225.0,2.20527]
[1625327845940,6.61467,2225.3,2222.8,2.63165179]
[1625327846046,6.61467,2225.3,2222.9,2.63110173]
[1625327846242,2.20527,2224.9,2224.4,2.20527]
[1625327848295,2.20527,2224.9,2224.8,2.20527]
[1625327849398,3.20527,2225.3,2224.8,5.17947]
[1625327849497,2.20527,2225.3,2224.8,5.17947]
[1625327849749,2.20527,2225.3,2224.9,16.362237]
[1625327849998,2.20527,2225.3,2224.8,2.20527]
[1625327850250,2.20527,2225.6,2225.2,2.20527]
[1625327850348,3.20527,2225.6,2225.2,2.20527]
[1625327850698,2.20527,2225.6,2225.2,2.20527]
[1625327850952,1.0,2225.5,2225.2,2.20527]
[1625327851203,2.20527,2225.6,2225.2,2.20527]
[1625327852499,1.0,2225.5,2225.2,2.20527]
[1625327853302,3.20527,2225.6,2225.2,2.20527]
[1625327853406,1.0,2225.5,2225.2,2.20527]
[1625327854058,2.20527,2225.6,2225.2,2.20527]
[1625327854357,2.20527,2225.3,2225.2,2.20527]
[1625327858686,3.20527,2225.3,2225.2,2.20527]
[1625327858898,3.20527,2225.3,2224.0,8.0]
[1625327859037,3.20527,2225.3,2224.1,8.0]
[1625327859490,3.20527,2225.3,2224.2,16.256927]
[1625327859839,3.20527,2225.3,2224.2,24.256927]
[1625327860138,3.20527,2225.3,2224.2,8.0]
[1625327860290,5.41054,2225.3,2225.2,2.20527]
[1625327861494,4.41054,2225.3,2225.2,2.20527]
[1625327865049,5.41054,2225.3,2225.2,2.20527]
[1625327871847,4.41054,2225.3,2225.2,2.20527]
[1625327872047,5.41054,2225.3,2225.2,2.20527]
[1625327873299,3.20527,2225.3,2225.2,2.20527]
[1625327873550,2.20527,2225.3,2225.2,2.20527]
[1625327874753,3.20527,2225.3,2225.2,2.20527]
[1625327874853,6.59107,2225.3,2225.2,2.20527]
[1625327875205,6.59107,2225.3,2224.9,2.20527]
[1625327875556,2.65190643,2225.1,2224.9,2.20527]
[1625327875656,1.0,2225.0,2224.9,2.20527]
[1625327876360,3.20527,2225.0,2224.9,2.20527]
[1625327876458,5.85840821,2225.0,2223.7,14.212]
[1625327876809,2.65294358,2224.9,2223.7,14.212]
[1625327876910,4.0701,2224.8,2223.7,14.212]
[1625327878365,2.20527,2224.1,2224.0,2.20527]
[1625327878615,5.63947,2224.1,2224.0,2.20527]
[1625327883696,5.63947,2224.1,2223.8,2.20527]
[1625327884100,6.63947,2224.1,2223.8,2.20527]
[1625327884245,5.63947,2224.1,2223.8,2.20527]
[1625327884451,5.63947,2224.1,2223.9,2.20527]
[1625327885150,5.63947,2224.1,2224.0,16.265296]
[1625327885507,5.63947,2224.1,2224.0,24.265296]
[1625327885703,3.4342,2224.1,2224.0,24.265296]
[1625327885804,2.20527,2224.3,2224.0,24.265296]
[1625327886454,2.20527,2224.3,2224.2,2.20527]
[1625327886753,2.20527,2224.3,2224.2,18.501998]
[1625327890411,3.20527,2224.3,2224.2,18.501998]
[1625327890560,3.20527,2224.3,2224.2,16.296728]
[1625327890862,3.20527,2224.3,2223.9,2.20527]
[1625327892119,2.20527,2224.3,2223.9,2.20527]
[1625327892465,2.20527,2224.0,2223.9,2.20527]
[1625327892565,2.20527,2224.3,2223.9,2.20527]
[1625327892663,2.20527,2224.3,2223.9,5.31807]
[1625327892763,2.20527,2224.3,2223.9,21.548558]
[1625327893915,2.20527,2224.3,2223.9,29.548558]
[1625327894519,2.20527,2224.3,2224.2,2.20527]
[1625327896021,2.20527,2224.3,2224.2,10.20527]
[1625327899280,2.20527,2224.3,2224.2,26.462203]
[1625327909068,3.20527,2224.7,2224.2,26.462203]
[1625327909166,2.20527,2224.7,2224.2,26.462203]
[1625327909567,3.20527,2224.7,2224.2,26.462203]
[1625327910674,5.41054,2224.7,2224.6,2.20527]
[1625327912076,4.41054,2224.7,2224.6,2.20527]
[1625327913276,5.41054,2224.7,2224.6,2.20527]
[1625327914085,4.41054,2224.7,2224.6,2.20527]
[1625327915157,4.41054,2224.7,2224.6,18.464049]
[1625327916356,5.41054,2224.7,2224.6,18.464049]
[1625327918264,5.41054,2224.7,2224.6,16.258779]
[1625327919214,4.41054,2224.7,2224.6,27.573079]
[1625327919723,1.0,2225.1,2224.6,27.573079]
[1625327920118,2.65180276,2225.5,2224.6,27.573079]
[1625327920418,1.0,2225.4,2224.6,27.573079]
[1625327920668,2.20527,2225.2,2225.1,2.20527]
[1625327920821,3.20527,2225.2,2225.1,2.20527]
[1625327921973,2.20527,2225.2,2225.1,2.20527]
[1625327922675,4.41054,2225.2,2225.1,2.20527]
[1625327922974,5.41054,2225.2,2225.1,2.20527]
[1625327923776,4.41054,2225.2,2225.1,2.20527]
[1625327924278,5.41054,2225.2,2225.1,2.20527]
[1625327924478,5.41054,2225.2,2225.1,18.50267]
[1625327925731,4.41054,2225.2,2225.1,21.80847]
[1625327925831,4.41054,2225.2,2225.1,29.80847]
[1625327926535,4.41054,2225.2,2225.1,21.80847]
[1625327928200,5.41054,2225.2,2225.1,21.80847]
[1625327928350,5.41054,2225.2,2225.1,18.50267]
[1625327929357,3.20527,2225.2,2225.1,18.50267]
[1625327931110,3.20527,2225.2,2225.1,2.20527]
[1625327931410,3.20527,2225.2,2224.2,10.65012178]
[1625327932061,3.20527,2225.2,2224.3,16.363095]
[1625327932611,3.20527,2225.2,2224.3,24.363095]
[1625327932714,3.20527,2225.2,2224.6,2.20527]
[1625327932813,2.20527,2224.7,2224.6,2.20527]
[1625327932962,5.92097,2224.7,2224.6,2.20527]
[1625327933662,6.92097,2224.7,2224.6,2.20527]
[1625327933761,5.92097,2224.7,2224.6,2.20527]
[1625327934766,8.12624,2224.7,2224.6,2.20527]
[1625327935668,9.12624,2224.7,2224.6,2.20527]
[1625327936868,8.12624,2224.7,2224.6,2.20527]
[1625327943732,8.12624,2224.7,2224.6,10.20527]
[1625327945653,3.7157,2224.7,2224.6,10.20527]
[1625327945756,1.0,2225.0,2224.6,26.49089]
[1625327946254,6.10731887,2225.6,2224.6,26.49089]
[1625327946354,1.0,2225.4,2224.6,26.49089]
[1625327946855,3.20527,2225.4,2225.2,2.20527]
[1625327946956,3.20527,2225.4,2225.2,4.76287]
[1625327947206,3.20527,2225.4,2225.3,16.417405]
[1625327947306,1.0,2225.4,2225.3,16.417405]
[1625327947560,3.5032,2225.4,2224.3,2.64647004]
[1625327947663,5.0,2225.3,2224.3,2.64647004]
[1625327947761,1.0,2225.2,2224.3,2.64647004]
[1625327948012,1.0,2225.2,2223.6,5.29294007]
[1625327948013,6.10829866,2225.1,2223.6,2.65270442]
[1625327948161,1.0,2225.0,2223.6,2.65270442]
[1625327948418,6.10887946,2224.5,2223.1,18.1551207]
[1625327948561,3.3923,2224.4,2223.1,18.1551207]
[1625327948710,3.3923,2224.4,2223.1,2.6564207]
[1625327948912,2.20527,2223.2,2223.1,2.6564207]
[1625327949013,5.66687,2223.2,2223.1,2.6564207]
[1625327949167,5.66687,2223.2,2222.8,9.62120942]
[1625327949264,6.66687,2223.2,2222.8,9.62120942]
[1625327949666,6.66687,2223.2,2222.8,6.96427]
[1625327950923,2.20527,2222.9,2222.8,6.96427]
[1625327955630,2.20527,2222.9,244.41,136.63817119]
[1625327955736,1.0,2222.8,2221.5,2.81540632]
[1625327956542,1.0,2222.8,2220.3,14.8934]
[1625327956543,1.0,2222.8,2220.4,5.30196219]
[1625327956788,1.0,2222.8,2220.5,0.19888308]
[1625327957003,5.83357,2220.8,2220.7,2.20527]
[1625327957350,5.83357,2220.8,2220.7,18.76669109]
[1625327957749,7e-05,2220.8,2220.7,18.76669109]
[1625327958151,7e-05,2220.8,2220.7,18.568072]
[1625327958254,2.6182,2221.3,2220.7,18.568072]
[1625327958702,2.6182,2221.3,2220.7,23.568072]
[1625327958802,2.6182,2221.3,2220.7,31.568072]
[1625327958905,1.0,2222.6,2220.7,31.568072]
[1625327959002,1.0,2222.6,2221.8,2.20527]
[1625327959305,1.0,2222.6,2221.9,16.445951]
[1625327959552,1.0,2222.6,2221.8,18.434189]
[1625327959653,4.5198,2222.6,2221.8,2.20527]
[1625327959902,4.5198,2222.6,2222.0,16.337184]
[1625327960204,4.5198,2222.6,2220.4,5.0]
[1625327960756,1.0,2222.5,2220.6,5.0]
[1625327960855,3.5198,2222.6,2220.9,16.371176]
[1625327960959,2.20527,2222.0,2221.9,2.20527]
[1625327961765,3.20527,2222.0,2221.9,2.20527]
[1625327962465,3.20527,2222.0,2221.7,2.20527]
[1625327962566,3.20527,2222.0,2220.8,29.553]
[1625327962769,2.20527,2222.0,2220.8,29.553]
[1625327962867,2.20527,2222.0,2220.8,14.7097]
[1625327962968,2.20527,2222.0,2221.4,2.20527]
[1625327963367,2.20527,2222.0,2221.5,16.315177]
[1625327963470,3.20527,2222.0,2221.5,16.315177]
[1625327964523,3.6104,2223.4,2221.5,16.315177]
[1625327964675,1.0,2222.8,2221.5,19.134277]
[1625327964774,14.5431,2224.2,2221.5,19.134277]
[1625327964974,2.20527,2222.5,2222.2,2.20527]
[1625327965322,2.20527,2222.5,2222.3,16.446745]
[1625327966979,2.20527,2222.5,2222.4,2.20527]
[1625327967279,2.20527,2222.5,2222.4,18.464411]
[1625327971655,2.20527,2222.5,2222.4,2.20527]
[1625327972309,4.62287,2222.5,2222.4,2.20527]
[1625327974611,4.62287,2222.5,2222.4,18.406184]
[1625327974963,5.62287,2222.5,2222.4,18.406184]
[1625327977067,4.62287,2222.5,2222.4,18.406184]
[1625327977822,5.62287,2222.5,2222.4,18.406184]
[1625327978168,4.62287,2222.5,2222.4,18.406184]
[1625327978369,5.62287,2222.5,2222.4,18.406184]
[1625327978669,5.62287,2222.5,2222.4,16.200914]
[1625327978972,5.62287,2222.5,2222.3,16.308471]
[1625327983583,5.62287,2222.5,2221.8,2.20527]
[1625327983683,5.62287,2222.5,2221.6,4.759]
[1625327984235,5.62287,2222.5,2221.7,16.385601]
[1625327984685,5.62287,2222.5,2221.3,16.312818]
[1625327985189,2.20527,2221.7,2221.5,2.20527]
[1625327985487,2.20527,2221.7,2221.6,16.235407]
[1625327986940,3.20527,2221.7,2221.6,16.235407]
[1625327987092,5.41054,2221.7,2221.6,16.235407]
[1625327987492,4.41054,2221.7,2221.6,16.235407]
[1625327988946,1.0,2222.1,2221.6,16.235407]
[1625327989147,4.41054,2221.7,2221.6,16.235407]
[1625327990268,5.41054,2221.7,2221.6,16.235407]
[1625327990664,4.41054,2221.7,2221.6,16.235407]
[1625327991116,4.41054,2221.7,2221.6,2.20527]
[1625327991516,4.41054,2221.7,2221.6,18.42246]
[1625327993017,1.0,2222.2,2221.6,18.42246]
[1625327993121,2.20527,2222.0,2221.6,20.62773]
[1625327995133,2.20527,2222.0,2221.9,2.20527]
[1625327995529,2.20527,2222.0,2221.9,18.405288]
[1625327995678,1.0,2222.5,2221.9,18.405288]
[1625327995830,15.2379,2223.6,2221.9,18.405288]
[1625327996680,1.0,2223.5,2221.9,18.405288]
[1625327997133,2.20527,2222.5,2222.4,2.20527]
[1625327997285,3.20527,2222.5,2222.4,2.20527]
[1625327997481,3.20527,2222.5,2222.4,18.407363]
[1625327999185,5.41054,2222.5,2222.4,18.407363]
[1625328000036,5.41054,2222.5,2222.4,18.60417385]
[1625328001842,5.41054,2222.5,2222.4,18.407363]
[1625328002891,4.41054,2222.5,2222.4,18.407363]
[1625328003143,3.1011,2224.3,2222.4,18.407363]
[1625328003243,0.9033,2225.4,2222.4,18.407363]
[1625328003447,1.8330467,2224.7,2222.4,18.407363]
[1625328004495,0.9033,2225.4,2222.4,18.407363]
[1625328004496,1.83306138,2224.6,2222.4,18.407363]
[1625328004595,4.93976138,2224.6,2222.4,18.407363]
[1625328005047,4.93976138,2224.6,2222.4,2.20527]
[1625328005247,2.20527,2222.9,2222.8,2.20527]
[1625328005347,2.20527,2222.9,2222.8,5.05167]
[1625328005863,2.20527,2222.9,2222.8,2.8464]
[1625328006615,2.20527,2222.9,2222.4,2.20527]
[1625328007218,2.20527,2222.9,2222.7,2.20527]
[1625328007968,2.20527,2222.9,2222.8,0.19750574]
[1625328008122,2.20527,2222.9,2222.8,16.48928574]
[1625328008372,0.8865,2224.7,2222.8,16.29178]
[1625328009223,4.41054,2222.9,2222.8,16.29178]
[1625328009328,0.8865,2224.7,2222.8,16.29178]
[1625328011227,2.20527,2222.9,2222.8,16.29178]
[1625328011377,0.8865,2224.7,2222.8,16.29178]
[1625328011480,0.8865,2224.7,2222.8,20.63138]
[1625328011579,0.8865,2224.7,2222.9,0.19746036]
[1625328011927,0.8865,2224.7,2223.0,16.249274]
[1625328012130,0.8865,2224.7,2223.1,0.19736185]
[1625328012480,0.8865,2224.7,2223.2,16.440624]
[1625328012935,0.8865,2224.7,2222.8,3.4346]
[1625328013033,0.8865,2224.7,2223.0,16.404378]
[1625328013134,0.8865,2224.7,2223.1,0.19727255]
[1625328013234,2.20527,2223.9,2223.8,2.20527]
[1625328013333,5.49707,2223.9,2223.6,2.20527]
[1625328014185,1.83808718,2225.6,2223.7,1.0]
[1625328014286,3.3786,2226.0,2223.7,1.0]
[1625328014287,1.83809769,2225.7,2223.7,1.0]
[1625328014385,1.83809769,2225.7,2223.8,0.19662128]
[1625328014487,1.83809769,2225.7,2224.2,1.15]
[1625328014586,1.83809769,2225.7,2224.3,1.0]
[1625328014686,1.83809769,2225.7,2224.4,8.0]
[1625328014786,1.83809769,2225.7,2224.5,1.0]
[1625328014889,1.83809769,2225.7,2224.5,1.19583017]
[1625328014990,6.56463462,2226.7,2224.5,1.19583017]
[1625328014991,1.84209643,2226.7,2224.5,1.19583017]
[1625328015139,1.84209643,2226.7,2224.6,16.291637]
[1625328015237,4.04736643,2226.7,2226.6,2.20527]
[1625328015337,4.04736643,2226.7,2224.7,1.0]
[1625328015889,2.20527,2226.7,2224.7,1.0]
[1625328015987,2.20527,2226.7,2224.8,16.244813]
[1625328016088,3.10577,2226.7,2224.9,1.0]
[1625328016191,3.10577,2226.7,2224.8,16.244813]
[1625328016290,2.20527,2226.7,2224.3,1.0]
[1625328016494,2.20527,2226.7,2224.4,0.19509617]
[1625328016740,2.20527,2226.7,2224.4,16.55095917]
[1625328016840,2.20527,2226.7,2224.5,1.0]
[1625328017090,2.20527,2226.7,2224.6,16.285853]
[1625328017188,2.20527,2226.7,2224.7,1.0]
[1625328017290,5.0,2226.7,2225.4,2.20527]
[1625328017440,15.94833583,2226.9,2225.4,2.20527]
[1625328017694,14.1058,2226.9,2225.4,2.20527]
[1625328018391,14.1058,2226.9,2225.5,1.0]
[1625328018992,14.1058,2226.9,2225.6,16.401085]
[1625328019190,14.1058,2226.9,2225.7,1.0]
[1625328019290,14.1058,2226.9,2226.1,2.20527]
[1625328019291,2.20527,2226.2,2226.1,2.20527]
[1625328020141,2.20527,2226.2,2223.7,1.84126832]
[1625328020142,3.20527,2226.2,2223.7,1.84126832]
[1625328020244,3.20527,2226.2,2223.8,13.0]
[1625328020348,3.20527,2226.2,2224.3,0.19574236]
[1625328020543,3.20527,2226.2,2224.3,8.0]
[1625328020694,3.20527,2226.2,2224.5,8.0]
[1625328020794,3.20527,2226.2,2224.6,5.0]
[1625328021095,3.20527,2226.2,2224.6,21.446698]
[1625328021296,3.20527,2226.2,2226.1,4.41054]
[1625328021297,1.0,2226.2,2226.1,4.41054]